bitfinex/quotes_BTCUSD_20220307
["timestamp","ask_amount","ask_price","bid_price","bid_amount"]
[1646657569293,0.1999,38645.0,38644.0,0.97702327]
[1646657569592,0.21628227,38646.0,38644.0,0.97702327]
[1646657569791,0.1,38645.0,38644.0,0.97702327]
[1646657569992,0.110369,38645.0,38644.0,0.97702327]
[1646657570194,0.06495869,38646.0,38644.0,0.97702327]
[1646657570393,0.06474,38646.0,38644.0,0.97702327]
[1646657570595,0.1,38645.0,38644.0,0.97702327]
[1646657570795,0.0649583,38646.0,38644.0,0.97702327]
[1646657570994,0.16751154,38647.0,38644.0,1.62702327]
[1646657571194,0.1,38645.0,38644.0,0.78883826]
[1646657571395,0.16751154,38647.0,38644.0,0.78883826]
[1646657571794,0.16751154,38647.0,38645.0,0.188]
[1646657571998,0.16751154,38647.0,38646.0,0.5]
[1646657572250,0.16751154,38647.0,38646.0,0.55]
[1646657572449,0.52296787,38648.0,38646.0,0.55]
[1646657572654,0.1,38647.0,38646.0,0.55]
[1646657573051,0.1,38647.0,38646.0,0.76812326]
[1646657573250,0.1,38647.0,38646.0,0.55]
[1646657573451,0.62286787,38648.0,38646.0,0.55]
[1646657573652,0.064736,38649.0,38646.0,0.55]
[1646657573653,0.05760387,38649.0,38646.0,0.55]
[1646657573957,0.110368,38647.0,38646.0,0.77004846]
[1646657574150,0.1,38647.0,38646.0,0.55]
[1646657576300,0.09931378,38647.0,38646.0,0.55]
[1646657576700,0.20016569,38648.0,38646.0,0.55]
[1646657576901,0.10026569,38648.0,38646.0,0.55]
[1646657577102,0.09990849,38647.0,38646.0,0.7378]
[1646657577302,0.30292358,38650.0,38646.0,0.7378]
[1646657577501,0.30292358,38650.0,38646.0,0.55]
[1646657577701,0.30292358,38650.0,38648.0,0.1878]
[1646657577906,0.33422763,38650.0,38649.0,0.5]
[1646657578103,0.1516,38650.0,38649.0,0.77848661]
[1646657578301,0.4516,38650.0,38649.0,0.77848661]
[1646657578901,0.3517,38650.0,38649.0,0.77848661]
[1646657579106,0.3516,38650.0,38649.0,0.99351238]
[1646657579405,0.2516,38650.0,38649.0,0.99351238]
[1646657579605,0.4226333,38651.0,38649.0,1.29351238]
[1646657579851,0.4226333,38652.0,38649.0,0.99351238]
[1646657580054,0.1342783,38653.0,38651.0,0.40774513]
[1646657580352,0.1342783,38653.0,38652.0,0.55]
[1646657580552,0.1,38655.0,38652.0,0.55]
[1646657580752,0.35469997,38656.0,38654.0,0.064729]
[1646657581254,0.35469997,38656.0,38654.0,0.564729]
[1646657581454,0.1,38655.0,38654.0,0.614729]
[1646657581754,0.2999,38655.0,38654.0,0.614729]
[1646657584197,0.1999,38655.0,38654.0,0.614729]
[1646657584400,0.0999,38655.0,38654.0,0.93834646]
[1646657584794,0.064719,38660.0,38655.0,0.7]
[1646657584997,0.3977568,38661.0,38656.0,0.364711]
[1646657584998,0.1511568,38661.0,38656.0,0.364711]
[1646657585196,0.19002405,38661.0,38660.0,0.21693419]
[1646657585395,0.03886912,38664.0,38660.0,0.71693419]
[1646657585597,0.72021793,38666.0,38660.0,1.13164341]
[1646657585598,0.1,38661.0,38660.0,1.13164341]
[1646657585797,0.1,38661.0,38660.0,0.83164341]
[1646657586196,0.1,38661.0,38660.0,0.76693419]
[1646657586797,0.10026483,38662.0,38660.0,0.76693419]
[1646657587350,0.1,38661.0,38660.0,0.95473419]
[1646657588148,0.1,38662.0,38660.0,0.95473419]
[1646657588348,0.1,38662.0,38660.0,1.25473419]
[1646657588549,0.1,38662.0,38660.0,0.95473419]
[1646657588747,0.00026483,38663.0,38662.0,1.314712]
[1646657588953,0.28532654,38667.0,38663.0,1.25]
[1646657589155,0.0999,38668.0,38664.0,0.56804144]
[1646657589348,0.0999,38668.0,38665.0,0.1878]
[1646657589547,0.4966999,38679.0,38666.0,0.3]
[1646657589751,0.0681,38676.0,38666.0,0.594051]
[1646657589949,0.06489008,38677.0,38673.0,0.16720635]
[1646657590348,0.16489008,38677.0,38673.0,0.51720635]
[1646657590550,0.16489008,38677.0,38673.0,0.21720635]
[1646657590998,0.16489008,38677.0,38675.0,0.6878]
[1646657591198,0.16489008,38677.0,38675.0,0.7378]
[1646657593198,0.17525008,38677.0,38675.0,0.7378]
[1646657593597,0.07525008,38677.0,38675.0,0.7378]
[1646657593999,0.00020308,38677.0,38676.0,0.3]
[1646657594599,0.00020308,38677.0,38676.0,0.39364916]
[1646657595055,0.00020308,38677.0,38676.0,0.3]
[1646657595452,0.00020308,38677.0,38675.0,0.7378]
[1646657596149,0.00020308,38677.0,38675.0,0.80083787]
[1646657596750,0.00020308,38677.0,38675.0,0.80247901]
[1646657597152,0.01056308,38677.0,38675.0,0.80247901]
[1646657597450,0.00020308,38677.0,38675.0,0.7378]
[1646657600202,0.00020308,38677.0,38675.0,1.0378]
[1646657600403,0.1,38679.0,38676.0,0.85]
[1646657600601,0.00026417,38678.0,38676.0,0.129365]
[1646657600800,0.1,38679.0,38676.0,0.844048]
[1646657601002,0.010359,38677.0,38676.0,0.844048]
[1646657601201,0.1,38679.0,38676.0,0.244048]
[1646657601401,0.1,38679.0,38677.0,0.05]
[1646657601702,0.1,38679.0,38678.0,0.5791138]
[1646657602248,0.1,38679.0,38678.0,0.55]
[1646657602856,0.1,38679.0,38678.0,0.85]
[1646657603052,0.1,38679.0,38678.0,0.55]
[1646657604553,0.1,38679.0,38678.0,0.6]
[1646657604753,0.110359,38679.0,38678.0,0.6]
[1646657605153,0.1,38679.0,38678.0,0.81228693]
[1646657606000,0.1,38679.0,38678.0,0.6]
[1646657606603,0.00950336,38680.0,38679.0,1.25]
[1646657606604,0.00026351,38680.0,38679.0,1.25]
[1646657606803,0.00026351,38680.0,38679.0,1.80868965]
[1646657607205,0.00026351,38680.0,38679.0,1.85868965]
[1646657607610,0.0011,38682.0,38680.0,0.21556963]
[1646657607802,0.0011,38682.0,38681.0,0.5]
[1646657608005,0.0011,38682.0,38681.0,0.85]
[1646657608201,0.0011,38682.0,38681.0,0.9]
[1646657608705,0.011457,38682.0,38681.0,0.6]
[1646657609103,0.011457,38682.0,38681.0,0.5]
[1646657609309,0.163157,38682.0,38681.0,0.5]
[1646657609507,0.163157,38682.0,38681.0,0.11177]
[1646657609775,0.813057,38682.0,38681.0,0.1109564]
[1646657609970,0.813057,38682.0,38679.0,0.18650655]
[1646657609971,1.20188882,38682.0,38679.0,0.18650655]
[1646657610271,0.1,38680.0,38679.0,0.1767616]
[1646657610471,0.27254652,38680.0,38679.0,0.16809132]
[1646657611373,0.27254652,38680.0,38679.0,0.16740019]
[1646657611574,0.57254652,38680.0,38679.0,0.16740019]
[1646657611771,0.57254652,38680.0,38679.0,0.47740019]
[1646657612172,0.57254652,38680.0,38679.0,0.97740019]
[1646657612374,0.58545652,38680.0,38679.0,0.97740019]
[1646657612574,0.69581752,38680.0,38679.0,0.97740019]
[1646657612975,0.68545652,38680.0,38679.0,0.97740019]
[1646657613178,0.72415143,38680.0,38679.0,0.97740019]
[1646657613376,0.42415143,38680.0,38679.0,0.97740019]
[1646657613601,0.42415143,38680.0,38679.0,0.47740019]
[1646657613801,0.41124143,38680.0,38679.0,0.47740019]
[1646657615605,0.41124143,38680.0,38679.0,0.37240019]
[1646657616211,0.3516,38680.0,38679.0,0.37240019]
[1646657616402,0.361961,38680.0,38679.0,0.37240019]
[1646657616800,0.3516,38680.0,38679.0,0.37240019]
[1646657617249,0.2516,38680.0,38679.0,0.37240019]
[1646657617453,0.1,38680.0,38679.0,0.37240019]
[1646657618054,0.1,38680.0,38679.0,0.54245765]
[1646657618453,0.1,38680.0,38679.0,0.84245765]
[1646657618653,0.1011,38682.0,38679.0,0.84245765]
[1646657618952,0.1011,38682.0,38680.0,0.05]
[1646657618953,0.00026351,38681.0,38680.0,0.05]
[1646657619151,0.00026351,38681.0,38680.0,0.35]
[1646657619752,0.0011,38682.0,38680.0,0.35]
[1646657619953,0.00130909,38682.0,38681.0,0.3]
[1646657621006,0.0011,38682.0,38681.0,0.3]
[1646657621606,0.0011,38682.0,38680.0,0.05]
[1646657621805,0.0011,38682.0,38680.0,0.35]
[1646657622003,0.0011,38682.0,38680.0,0.05]
[1646657624410,0.011457,38682.0,38680.0,0.05]
[1646657624610,0.0011,38682.0,38680.0,0.05]
[1646657627354,0.0653957,38684.0,38683.0,0.1811428]
[1646657627553,0.0653957,38684.0,38683.0,0.6811428]
[1646657627754,0.0653957,38684.0,38683.0,0.7311428]
[1646657627953,0.0653957,38684.0,38683.0,0.2311428]
[1646657628353,0.0757537,38684.0,38683.0,0.05]
[1646657628605,0.0757537,38684.0,38683.0,0.55]
[1646657628808,0.0757537,38684.0,38683.0,0.5]
[1646657629011,0.1274537,38684.0,38683.0,0.5]
[1646657629205,0.1274537,38684.0,38683.0,0.111812]
[1646657629206,0.2170957,38684.0,38683.0,0.111812]
[1646657629405,0.4170957,38684.0,38683.0,0.111812]
[1646657629606,1.0631957,38684.0,38683.0,0.111812]
[1646657629806,0.98414222,38684.0,38683.0,0.111812]
[1646657630006,1.08414222,38684.0,38683.0,0.111812]
[1646657630206,1.08414222,38684.0,38678.0,0.0044306]
[1646657630406,1.1278907,38684.0,38678.0,0.0044306]
[1646657630612,0.1,38679.0,38678.0,0.0044306]
[1646657630808,0.37295042,38679.0,38678.0,0.0044306]
[1646657631007,0.37295042,38679.0,38678.0,0.2644306]
[1646657631413,0.37295042,38679.0,38678.0,0.3144306]
[1646657631608,0.30825642,38679.0,38678.0,0.3144306]
[1646657632349,0.31861642,38679.0,38678.0,0.3144306]
[1646657632551,0.31225642,38679.0,38678.0,0.3144306]
[1646657632749,0.31225642,38679.0,38678.0,1.2144306]
[1646657633752,0.30825642,38679.0,38678.0,1.2144306]
[1646657634353,0.30825642,38679.0,38678.0,1.2094306]
[1646657634957,0.95435642,38679.0,38678.0,1.1644306]
[1646657635356,1.05435642,38679.0,38678.0,1.1644306]
[1646657635557,1.15435642,38679.0,38678.0,0.7762176]
[1646657636002,1.15435642,38679.0,38678.0,0.3879926]
[1646657636202,1.16471742,38679.0,38678.0,0.3879926]
[1646657636608,0.20428774,38672.0,38670.0,0.3]
[1646657636806,0.25598774,38672.0,38669.0,0.55]
[1646657637003,0.35598774,38672.0,38669.0,0.55]
[1646657637204,0.35598774,38672.0,38668.0,0.26062506]
[1646657637407,0.1517,38672.0,38668.0,0.26062506]
[1646657639853,0.162061,38672.0,38668.0,0.56062506]
[1646657640151,0.162061,38672.0,38669.0,0.5]
[1646657640354,0.1517,38672.0,38669.0,0.5]
[1646657641253,0.1517,38672.0,38671.0,0.27291]
[1646657641456,0.0517,38672.0,38671.0,0.26]
[1646657641652,0.0517,38672.0,38671.0,0.31]
[1646657643253,0.1,38676.0,38672.0,0.9534]
[1646657643512,0.1517,38676.0,38672.0,0.46807856]
[1646657643719,0.0517,38676.0,38672.0,0.46807856]
[1646657644417,0.1517,38682.0,38674.0,0.19102901]
[1646657644612,0.1517,38682.0,38675.0,0.36467762]
[1646657644811,0.1517,38682.0,38675.0,0.11467762]
[1646657645211,0.1517,38682.0,38679.0,0.2499]
[1646657647113,0.216385,38682.0,38679.0,0.2499]
[1646657647370,0.1517,38682.0,38679.0,0.46012203]
[1646657647573,0.1517,38682.0,38679.0,0.2499]
[1646657647770,0.162059,38682.0,38679.0,0.2499]
[1646657648072,0.216386,38682.0,38679.0,0.05]
[1646657648270,0.216386,38682.0,38676.0,0.55]
[1646657648471,0.1517,38682.0,38676.0,0.55]
[1646657648670,0.1567,38682.0,38677.0,0.3]
[1646657649474,0.1567,38682.0,38680.0,0.20617827]
[1646657649874,0.0567,38682.0,38681.0,0.05]
[1646657650374,0.1007187,38684.0,38681.0,0.04931048]
[1646657651012,0.1007187,38684.0,38682.0,0.1998]
[1646657651611,0.1110767,38684.0,38682.0,0.1998]
[1646657652215,0.1110767,38684.0,38681.0,0.80931048]
[1646657652417,0.1110767,38684.0,38681.0,0.80862046]
[1646657652814,0.1110767,38684.0,38682.0,0.1998]
[1646657653315,0.1007187,38684.0,38682.0,0.1998]
[1646657655465,0.0007187,38684.0,38682.0,0.1998]
[1646657655665,0.0110767,38684.0,38682.0,0.1998]
[1646657656265,0.0007187,38684.0,38682.0,0.1998]
[1646657656664,0.0067187,38684.0,38682.0,0.1998]
[1646657657871,0.0007187,38684.0,38682.0,0.1998]
[1646657658368,0.0007187,38684.0,38682.0,0.2498]
[1646657658600,0.0007187,38684.0,38683.0,0.5]
[1646657658799,0.0007187,38684.0,38683.0,0.55]
[1646657659000,0.7762387,38684.0,38683.0,0.55]
[1646657659400,0.7865967,38684.0,38683.0,0.55]
[1646657659800,0.7762387,38684.0,38683.0,0.55]
[1646657660703,0.7822387,38684.0,38683.0,0.55]
[1646657661704,0.8822387,38684.0,38683.0,0.55]
[1646657661903,0.9279387,38684.0,38683.0,0.55]
[1646657662354,1.10215588,38684.0,38683.0,0.55]
[1646657662553,1.10815588,38684.0,38683.0,0.55]
[1646657662755,0.9339387,38684.0,38683.0,0.05]
[1646657663053,0.9339387,38684.0,38682.0,0.2498]
[1646657663454,0.1,38683.0,38682.0,0.2498]
[1646657663754,0.92722,38683.0,38682.0,0.2498]
[1646657664759,0.82722,38683.0,38682.0,0.2498]
[1646657666812,0.83422,38683.0,38682.0,0.2498]
[1646657667515,0.61375495,38683.0,38682.0,0.2498]
[1646657667725,0.61375495,38683.0,38682.0,1.494696]
[1646657667726,0.55169695,38683.0,38682.0,1.494696]
[1646657667912,0.54469695,38683.0,38682.0,1.494696]
[1646657668112,0.54469695,38683.0,38682.0,1.0998]
[1646657669765,0.54469695,38683.0,38682.0,0.7998]
[1646657670566,0.64469695,38683.0,38682.0,0.6998]
[1646657670764,0.64469695,38683.0,38682.0,0.5]
[1646657670765,1.34249695,38683.0,38682.0,0.5]
[1646657670964,1.34249695,38683.0,38681.0,0.26]
[1646657670965,1.58884922,38683.0,38681.0,0.26]
[1646657671165,0.66704652,38682.0,38681.0,0.26]
[1646657671366,1.52166574,38682.0,38681.0,0.26]
[1646657672064,1.52166574,38682.0,38681.0,0.31]
[1646657672666,1.46344347,38682.0,38681.0,0.31]
[1646657673065,2.02166574,38682.0,38681.0,0.31]
[1646657673265,2.02166574,38682.0,38681.0,0.17015381]
[1646657673505,2.02166574,38682.0,38681.0,0.15615]
[1646657675209,2.14480574,38682.0,38681.0,0.20615]
[1646657675406,2.13192574,38682.0,38681.0,0.20615]
[1646657675606,2.02166574,38682.0,38681.0,0.20615]
[1646657676808,2.12085662,38682.0,38681.0,0.20615]
[1646657677453,2.02095662,38682.0,38681.0,0.20615]
[1646657678253,2.12085662,38682.0,38681.0,0.20615]
[1646657678453,2.02095662,38682.0,38681.0,0.20615]
[1646657679054,2.13121662,38682.0,38681.0,0.20615]
[1646657680461,2.12085662,38682.0,38681.0,0.20615]
[1646657681507,2.0999101,38682.0,38681.0,0.20615]
[1646657681908,2.04168783,38682.0,38681.0,0.20615]
[1646657682110,1.54168783,38682.0,38681.0,0.20615]
[1646657682711,1.44178783,38682.0,38681.0,0.20615]
[1646657682910,0.80675595,38682.0,38681.0,0.20615]
[1646657683309,0.79639695,38682.0,38681.0,0.20615]
[1646657684411,0.79639695,38682.0,38681.0,0.25615]
[1646657685057,0.69639695,38682.0,38681.0,0.25615]
[1646657686156,0.59639695,38682.0,38681.0,0.25615]
[1646657686357,0.69639695,38682.0,38681.0,0.25615]
[1646657686756,0.70675595,38682.0,38681.0,0.25615]
[1646657687157,0.69639695,38682.0,38681.0,0.25615]
[1646657690706,0.70675595,38682.0,38681.0,0.25615]
[1646657690910,0.69639695,38682.0,38681.0,0.25615]
[1646657693256,0.59639695,38682.0,38681.0,0.25615]
[1646657694260,0.54469695,38682.0,38681.0,0.25615]
[1646657694760,0.55505495,38682.0,38681.0,0.25615]
[1646657694960,0.54469695,38682.0,38681.0,0.25615]
[1646657698630,0.55505595,38682.0,38681.0,0.25615]
[1646657699426,0.54469695,38682.0,38681.0,0.25615]
[1646657700455,0.54469695,38682.0,38681.0,0.25605364]
[1646657702462,0.55505595,38682.0,38681.0,0.25605364]
[1646657703262,0.54469695,38682.0,38681.0,0.25605364]
[1646657706714,0.54969695,38682.0,38681.0,0.25605364]
[1646657707965,0.0007187,38684.0,38682.0,1.5223211]
[1646657708368,0.0007187,38684.0,38683.0,0.28872375]
[1646657708567,0.0007187,38684.0,38683.0,0.05]
[1646657708968,0.0007187,38684.0,38683.0,0.43953678]
[1646657709170,0.0007187,38684.0,38683.0,1.03953678]
[1646657709370,0.0007187,38684.0,38683.0,1.08953678]
[1646657709571,0.0007187,38684.0,38683.0,1.23953678]
[1646657709970,0.0007187,38684.0,38683.0,1.08953678]
[1646657710374,0.0110747,38684.0,38683.0,1.08953678]
[1646657711210,0.0110747,38684.0,38683.0,0.9189331]
[1646657711412,0.0110747,38684.0,38683.0,0.7]
[1646657711613,0.0110747,38684.0,38683.0,0.5]
[1646657712412,0.7865947,38684.0,38683.0,0.5]
[1646657713415,0.7865947,38684.0,38683.0,0.6]
[1646657715564,0.7865947,38684.0,38683.0,0.87226353]
[1646657715964,0.7865947,38684.0,38683.0,0.6]
[1646657718265,0.7865947,38684.0,38683.0,0.9]
[1646657721625,0.7865947,38684.0,38683.0,0.6]
[1646657722657,0.8865947,38684.0,38683.0,0.6]
[1646657722856,0.8865947,38684.0,38683.0,0.5]
[1646657723056,0.9382947,38684.0,38683.0,0.5]
[1646657724159,0.9382947,38684.0,38683.0,0.6]
[1646657724758,0.8382947,38684.0,38683.0,0.6]
[1646657725160,0.9382947,38684.0,38683.0,0.6]
[1646657726809,0.93776557,38684.0,38683.0,0.6]
[1646657727206,0.93776557,38684.0,38683.0,0.5]
[1646657727406,1.03766557,38684.0,38683.0,0.5]
[1646657728607,1.03766557,38684.0,38683.0,0.55]
[1646657728805,1.03766557,38684.0,38683.0,0.6]
[1646657729407,1.03766557,38684.0,38683.0,0.1]
[1646657729866,1.03766557,38684.0,38683.0,0.05]
[1646657730069,1.03766557,38684.0,38682.0,0.21347916]
[1646657730273,0.1,38683.0,38682.0,0.21347916]
[1646657730463,1.73154227,38683.0,38682.0,0.21347916]
[1646657730662,1.83144227,38683.0,38682.0,0.21347916]
[1646657730864,2.23150316,38683.0,38682.0,0.21347916]
[1646657731265,2.03616089,38683.0,38682.0,0.21347916]
[1646657732564,2.03616089,38683.0,38682.0,0.26347916]
[1646657732766,1.93626089,38683.0,38682.0,0.26347916]
[1646657732964,1.92338089,38683.0,38682.0,0.26347916]
[1646657735212,2.02328089,38683.0,38682.0,0.26347916]
[1646657735611,1.92338089,38683.0,38682.0,0.25847916]
[1646657735812,1.93374089,38683.0,38682.0,0.25847916]
[1646657736012,2.03364089,38683.0,38682.0,0.25847916]
[1646657736215,1.93374089,38683.0,38682.0,0.25847916]
[1646657736413,1.83440551,38683.0,38682.0,0.25847916]
[1646657736614,1.93430551,38683.0,38682.0,0.30847916]
[1646657737254,1.93430551,38683.0,38682.0,0.25847916]
[1646657737858,1.78358,38683.0,38682.0,0.25847916]
[1646657738058,1.68368,38683.0,38682.0,0.25847916]
[1646657738457,1.83452223,38683.0,38682.0,0.25847916]
[1646657738857,1.93442223,38683.0,38682.0,0.25847916]
[1646657739556,1.83452223,38683.0,38682.0,0.25847916]
[1646657739957,1.93442223,38683.0,38682.0,0.25847916]
[1646657741211,1.83452223,38683.0,38682.0,0.25847916]
[1646657743114,1.93442223,38683.0,38682.0,0.25847916]
[1646657743312,1.18842223,38683.0,38682.0,0.25847916]
[1646657743514,1.13672223,38683.0,38682.0,0.25847916]
[1646657743713,0.98588,38683.0,38682.0,0.25847916]
[1646657743913,0.88588,38683.0,38682.0,0.30847916]
[1646657744215,0.88588,38683.0,38682.0,0.25847916]
[1646657747773,0.93758,38683.0,38682.0,0.25847916]
[1646657748373,3.38689989,38683.0,38682.0,0.25847916]
[1646657748611,3.48689989,38683.0,38682.0,0.25847916]
[1646657748810,1.03758,38683.0,38682.0,0.25847916]
[1646657749209,1.03758,38683.0,38682.0,0.06367916]
[1646657749409,1.03758,38683.0,38682.0,0.01367916]
[1646657749810,0.93758,38683.0,38682.0,0.01367916]
[1646657750013,0.93758,38683.0,38672.0,0.24081216]
[1646657750014,0.646894,38673.0,38672.0,0.24081216]
[1646657750210,0.646894,38673.0,38668.0,0.420856]
[1646657750211,0.2,38669.0,38668.0,0.420856]
[1646657750510,0.77552,38669.0,38668.0,0.60261875]
[1646657750713,0.77552,38669.0,38668.0,0.394779]
[1646657751110,0.77552,38669.0,38668.0,0.006642]
[1646657751709,0.77552,38669.0,38667.0,0.3335254]
[1646657751710,0.77552,38669.0,38667.0,0.05]
[1646657751909,0.77552,38669.0,38668.0,0.313643]
[1646657752370,0.77552,38669.0,38668.0,0.394781]
[1646657752772,0.840194,38669.0,38668.0,0.66326226]
[1646657752970,0.59848309,38669.0,38668.0,0.66326226]
[1646657753171,0.59848309,38669.0,38668.0,0.68922226]
[1646657753374,0.59848309,38669.0,38668.0,0.80827574]
[1646657753970,0.744052,38670.0,38669.0,1.77682966]
[1646657753971,0.58512624,38670.0,38669.0,1.77682966]
[1646657754269,0.58512624,38670.0,38669.0,1.87682966]
[1646657754473,0.55,38670.0,38669.0,1.99065711]
[1646657755471,0.55,38670.0,38669.0,1.87682966]
[1646657755671,0.55,38670.0,38669.0,1.99588314]
[1646657757113,0.55,38670.0,38669.0,1.87682966]
[1646657757311,0.55,38670.0,38669.0,1.99588314]
[1646657760260,0.55,38670.0,38669.0,2.2053451]
[1646657760461,0.194054,38671.0,38669.0,2.9976451]
[1646657760663,0.06467,38672.0,38670.0,1.313019]
[1646657760862,0.06467,38672.0,38671.0,0.420676]
[1646657761064,0.06467,38672.0,38671.0,0.44653818]
[1646657761263,0.064657,38675.0,38673.0,0.02596]
[1646657761464,0.064657,38675.0,38674.0,0.44653818]
[1646657761861,0.064657,38675.0,38674.0,0.54653818]
[1646657762062,0.064657,38675.0,38674.0,0.52057818]
[1646657762263,0.064657,38675.0,38674.0,0.494716]
[1646657764116,0.064657,38675.0,38674.0,0.520676]
[1646657764310,0.064657,38675.0,38674.0,0.494716]
[1646657766316,0.064657,38675.0,38674.0,0.520676]
[1646657766515,0.064657,38675.0,38674.0,0.494716]
[1646657766716,0.064657,38675.0,38674.0,0.520676]
[1646657767116,0.064657,38675.0,38674.0,0.494716]
[1646657767603,0.064657,38675.0,38674.0,0.73715237]
[1646657767798,0.064657,38675.0,38674.0,0.494716]
[1646657768397,0.064657,38675.0,38672.0,0.0999]
[1646657768599,0.064657,38675.0,38673.0,0.394781]
[1646657768798,0.064657,38675.0,38674.0,0.394626]
[1646657769601,0.064657,38675.0,38674.0,0.494626]
[1646657774765,0.064657,38675.0,38674.0,0.754626]
[1646657775364,0.130422,38676.0,38674.0,0.754626]
[1646657778166,0.130422,38676.0,38675.0,0.494761]
[1646657778616,0.130422,38676.0,38675.0,0.794761]
[1646657778817,0.13036167,38676.0,38675.0,0.794761]
[1646657779014,0.13036167,38676.0,38675.0,0.494761]
[1646657780417,0.00128957,38684.0,38683.0,0.30381469]
[1646657780617,0.77680957,38684.0,38683.0,0.30381469]
[1646657782989,0.77680957,38684.0,38683.0,0.99859569]
[1646657783189,0.77680957,38684.0,38683.0,0.69859569]
[1646657783788,0.77680957,38684.0,38683.0,0.79859569]
[1646657784791,0.77680957,38684.0,38683.0,0.66381469]
[1646657785088,0.77680957,38684.0,38683.0,0.99259569]
[1646657785490,0.77680957,38684.0,38683.0,1.29259569]
[1646657785892,0.77680957,38684.0,38683.0,1.50180013]
[1646657786120,0.77680957,38684.0,38683.0,1.52776013]
[1646657786320,0.77680957,38684.0,38683.0,2.32006013]
[1646657786721,0.01824154,38684.0,38683.0,2.32006013]
[1646657787521,0.01824154,38684.0,38683.0,2.43382577]
[1646657788123,0.01824154,38684.0,38683.0,2.53372577]
[1646657788722,0.01824154,38684.0,38683.0,2.53371989]
[1646657792267,0.01824154,38684.0,38683.0,1.71545989]
[1646657792469,0.01824154,38684.0,38683.0,1.50625545]
[1646657792668,0.01824154,38684.0,38683.0,1.47100345]
[1646657792870,0.01824154,38684.0,38683.0,1.40635545]
[1646657794118,0.01824154,38684.0,38683.0,0.71157445]
[1646657794314,0.01824154,38684.0,38683.0,1.10635545]
[1646657794915,0.01824154,38684.0,38683.0,0.99259569]
[1646657796919,0.01824154,38684.0,38683.0,0.89222969]
[1646657797118,0.01824154,38684.0,38683.0,0.49781469]
[1646657797373,0.56302254,38684.0,38683.0,0.49781469]
[1646657797968,0.61472254,38684.0,38683.0,0.49781469]
[1646657798565,0.61472254,38684.0,38683.0,0.54781469]
[1646657799370,0.61472254,38684.0,38683.0,0.94781469]
[1646657799371,0.01824154,38684.0,38683.0,0.94781469]
[1646657799573,0.01824154,38684.0,38683.0,1.04259569]
[1646657799768,0.01824154,38684.0,38683.0,1.0684552]
[1646657799972,0.01824154,38684.0,38683.0,1.04259569]
[1646657800468,0.01824154,38684.0,38683.0,1.29679081]
[1646657801513,0.01824154,38684.0,38683.0,1.36143881]
[1646657802915,0.01824154,38684.0,38683.0,1.29679081]
[1646657805566,0.01824154,38684.0,38683.0,1.04259569]
[1646657806166,0.01824154,38684.0,38683.0,0.54781469]
[1646657806768,0.01824154,38684.0,38683.0,0.49781469]
[1646657806968,0.58898254,38684.0,38683.0,0.49781469]
[1646657807168,0.63898254,38684.0,38683.0,0.49775161]
[1646657807769,0.63766012,38684.0,38683.0,0.49775161]
[1646657808167,0.64068254,38684.0,38683.0,0.49775161]
[1646657808614,0.70535854,38684.0,38683.0,0.49775161]
[1646657808815,0.70535854,38684.0,38683.0,0.54775161]
[1646657809216,0.7049383,38684.0,38683.0,0.54775161]
[1646657810216,0.6402623,38684.0,38683.0,0.54775161]
[1646657813867,0.07679543,38684.0,38683.0,0.54775161]
[1646657814268,0.85231543,38684.0,38683.0,0.54775161]
[1646657816718,0.82722,38684.0,38683.0,0.54775161]
[1646657817318,0.77552,38684.0,38683.0,0.54775161]
[1646657817524,0.77552,38684.0,38683.0,1.34246861]
[1646657817821,0.77552,38684.0,38683.0,1.25967115]
[1646657818020,0.77552,38684.0,38683.0,1.55967115]
[1646657818021,0.38767,38684.0,38683.0,1.55967115]
[1646657818619,0.00021582,38685.0,38684.0,1.69779169]
[1646657818620,5.282e-05,38685.0,38684.0,1.69779169]
[1646657818823,5.282e-05,38685.0,38684.0,1.744717]
[1646657819019,5.282e-05,38685.0,38684.0,1.809359]
[1646657819218,0.0122,38686.0,38684.0,1.809359]
[1646657819419,0.77549,38685.0,38684.0,1.809359]
[1646657819618,0.387667,38685.0,38684.0,1.809359]
[1646657819868,0.387667,38685.0,38684.0,0.494717]
[1646657820467,0.387667,38685.0,38683.0,0.76219161]
[1646657820673,0.387667,38685.0,38683.0,0.49775161]
[1646657820674,0.394717,38684.0,38683.0,0.49775161]
[1646657820972,0.95207444,38684.0,38683.0,0.49775161]
[1646657821570,1.05377444,38684.0,38683.0,0.49775161]
[1646657821768,1.11844944,38684.0,38683.0,0.49775161]
[1646657822167,1.05377444,38684.0,38683.0,0.49775161]
[1646657823824,1.27596,38683.0,38674.0,0.329152]
[1646657824020,0.09065116,38681.0,38674.0,0.1998]
[1646657824220,0.09065116,38681.0,38671.0,0.01291]
[1646657824221,0.12596,38679.0,38671.0,0.01291]
[1646657824421,0.02596,38677.0,38670.0,0.064689]
[1646657824622,0.860044,38676.0,38669.0,0.10613166]
[1646657824822,0.02596,38674.0,38669.0,0.10613166]
[1646657825020,0.860044,38673.0,38669.0,0.10613166]
[1646657825221,0.515327,38673.0,38669.0,0.10613166]
[1646657825522,0.515327,38673.0,38669.0,0.36613166]
[1646657825720,0.489367,38673.0,38670.0,0.064688]
[1646657826421,0.554049,38673.0,38670.0,0.064688]
[1646657826827,0.06468616,38672.0,38670.0,0.064688]
[1646657827022,0.387667,38671.0,38670.0,0.064688]
[1646657828169,0.387667,38671.0,38669.0,0.41613166]
[1646657828370,0.394717,38670.0,38669.0,0.41613166]
[1646657828572,1.134084,38670.0,38669.0,0.36613166]
[1646657828794,1.184084,38670.0,38669.0,0.36613166]
[1646657828973,0.364903,38667.0,38659.0,0.2366]
[1646657829171,0.85,38669.0,38659.0,0.2366]
[1646657829172,0.02596,38665.0,38659.0,0.2366]
[1646657829374,0.72661,38664.0,38659.0,0.2366]
[1646657829572,0.394717,38662.0,38659.0,0.234713]
[1646657829772,0.338943,38660.0,38659.0,0.234713]
[1646657829975,0.387667,38660.0,38654.0,0.15]
[1646657830173,0.20081675,38656.0,38654.0,0.15]
[1646657830372,0.15777812,38659.0,38657.0,0.40163349]
[1646657830573,0.387667,38658.0,38657.0,0.40163349]